fUSD/lending_fUSD_20260118
["ID","MTS","AMOUNT","RATE_DAILY","PERIOD"]
[402617975,1768725055753,-1220.523,0.00017355,2]
[402617976,1768725055762,-915.0,0.00017355,2]
[402617977,1768725055772,-1407.0,0.00017355,2]
[402617978,1768725055781,-615.0,0.00017355,2]
[402617979,1768725055791,-3488.054,0.00017355,2]
[402617980,1768725055800,-7343.55992792,0.00017383,2]
[402617981,1768725055810,-13652.55069405,0.00017383,2]
[402617982,1768725055819,-187.91,0.00017395,2]
[402617983,1768725055829,-387.56,0.00017399,2]
[402617984,1768725055839,-851.86666608,0.000174,2]
[402617985,1768725055848,-2003.23,0.000174,2]
[402617986,1768725055858,-1800.0,0.000174,6]
[402617987,1768725055867,-1708.24,0.00017407,2]
[402617988,1768725055876,-166.67,0.00017434,2]
[402617989,1768725055886,-172.82,0.00017448,2]
[402617990,1768725055896,-363.2,0.00017472,2]
[402617991,1768725055905,-348.92624676,0.00017494,2]
[402617992,1768725055915,-1108.74,0.000175,7]
[402617993,1768725055924,-2000.0,0.000175,2]
[402617994,1768725055933,-300.0,0.000175,6]
[402617995,1768725055942,-500.0,0.00017532,2]
[402617996,1768725055952,-545.69,0.00017534,2]
[402617997,1768725055961,-500.0,0.00017534,2]
[402617998,1768725055970,-500.0,0.00017534,2]
[402617999,1768725055980,-500.0,0.00017534,2]
[402618000,1768725055989,-500.0,0.00017534,2]
[402618001,1768725055999,-500.0,0.00017534,2]
[402618002,1768725056009,-500.0,0.00017534,2]
[402618003,1768725056019,-500.0,0.00017534,2]
[402618004,1768725056028,-500.0,0.00017534,2]
[402618005,1768725056039,-500.0,0.00017534,2]
[402618006,1768725056048,-500.0,0.00017534,2]
[402618007,1768725056057,-500.0,0.00017534,2]
[402618008,1768725056067,-500.0,0.00017534,2]
[402618009,1768725056077,-500.0,0.00017534,2]
[402618010,1768725056086,-500.0,0.00017534,2]
[402618011,1768725056099,-1312.0215844,0.00017534,2]
[402618012,1768725056108,-500.0,0.00017534,2]
[402618013,1768725056118,-500.0,0.00017534,2]
[402618014,1768725056127,-500.0,0.00017534,2]
[402618015,1768725056137,-500.0,0.00017534,2]
[402618016,1768725056146,-500.0,0.00017534,2]
[402618017,1768725056156,-500.0,0.00017534,2]
[402618018,1768725056166,-292.16714034,0.00017534,2]
[402618019,1768725056604,-207.83285966,0.00017534,2]
[402618020,1768725056620,-500.0,0.00017534,2]
[402618021,1768725056634,-500.0,0.00017534,2]
[402618022,1768725056652,-500.0,0.00017534,2]
[402618023,1768725056665,-500.0,0.00017534,2]
[402618024,1768725056676,-500.0,0.00017534,2]
[402618025,1768725056689,-500.0,0.00017534,2]
[402618026,1768725056712,-672.04,0.00017534,2]
[402618027,1768725056732,-431.52392527,0.00017534,2]
[402618028,1768725056759,-68.47607473,0.00017534,2]
[402618029,1768725056771,-282.39002693,0.00017534,2]
[402618030,1768725056783,-301.38434907,0.00017534,2]
[402618039,1768725128195,5168.282829,7.945e-05,2]
[402618075,1768725339911,-150.0,0.00015473,2]
[402618099,1768725646410,753.37,7.705e-05,2]
[402618100,1768725646606,753.37,8.111e-05,2]
[402618101,1768725646879,753.37,8.516e-05,2]
[402618102,1768725647073,753.37,8.922e-05,2]
[402618103,1768725647494,753.37,9.327e-05,2]
[402618104,1768725647717,753.37,9.733e-05,2]
[402618105,1768725647895,311.497171,0.00010139,2]
[402618106,1768725647917,441.872829,0.00010139,2]
[402618107,1768725648083,753.37,0.00010544,2]
[402618108,1768725648275,753.37,0.0001095,2]
[402618109,1768725648473,753.37,0.00011355,2]
[402618110,1768725648665,753.37,0.00011761,2]
[402618111,1768725648878,753.37,0.00012166,2]
[402618112,1768725649067,753.37,0.00012572,2]
[402618113,1768725649255,753.37,0.00012977,2]
[402618115,1768725660402,-264.39238899,0.00013383,2]
[402618116,1768725662997,-154.31737634,0.00013383,2]
[402618202,1768726174091,-334.66023467,0.00013383,2]
[402618203,1768726174114,-745.90566003,0.00013788,2]
[402618204,1768726174141,-753.37,0.00013788,2]
[402618205,1768726174165,-753.37,0.00014194,2]
[402618206,1768726174188,-434.51,0.00014383,2]
[402618207,1768726174212,-753.37,0.00014599,2]
[402618208,1768726174234,-1618.9031553,0.00014709,2]
[402618209,1768726176860,-2289.5568447,0.00014709,2]
[402618210,1768726196156,-292.24153214,0.00014721,2]
[402618211,1768726196177,-753.37,0.00015005,2]
[402618212,1768726196198,-745.90566003,0.00015193,2]
[402618213,1768726196218,-200.0,0.00015242,2]
[402618214,1768726196239,-18.92596313,0.00015292,2]
[402618215,1768726231634,-147.73403687,0.00015292,2]
[402618216,1768726231644,-387.08202313,0.00015399,2]
[402618217,1768726231735,-1403.84725605,0.00015399,2]
[402618218,1768726231747,-159494.82142083,0.00015399,2]
[402618219,1768726231758,-10301.84019999,0.00015399,2]
[402618220,1768726231767,-753.37,0.00015411,2]
[402618221,1768726231777,-5461.02027762,0.00015473,2]
[402618222,1768726231786,-1200.0,0.00015497,2]
[402618223,1768726231795,-781.422,0.00015498,2]
[402618224,1768726231805,-300.0,0.00015498,2]
[402618225,1768726231815,-500.0,0.00015499,2]
[402618226,1768726231826,-500.0,0.00015499,2]
[402618227,1768726231836,-500.0,0.00015499,2]
[402618228,1768726231846,-500.0,0.00015499,2]
[402618229,1768726231855,-500.0,0.00015499,2]
[402618230,1768726231865,-500.0,0.00015499,2]
[402618231,1768726231874,-500.0,0.00015499,2]
[402618232,1768726231884,-500.0,0.00015499,2]
[402618234,1768726231893,-500.0,0.00015499,2]
[402618235,1768726231902,-500.0,0.00015499,2]
[402618237,1768726231911,-500.0,0.00015499,2]
[402618239,1768726231921,-500.0,0.00015499,2]
[402618240,1768726231930,-500.0,0.00015499,2]
[402618242,1768726231940,-500.0,0.00015499,2]
[402618246,1768726231949,-500.0,0.00015499,2]
[402618249,1768726231963,-500.0,0.00015499,2]
[402618252,1768726231973,-500.0,0.00015499,2]
[402618256,1768726231987,-500.0,0.00015499,2]
[402618259,1768726231999,-500.0,0.00015499,2]
[402618262,1768726232009,-625.86002411,0.00015499,2]
[402618265,1768726232020,-500.0,0.00015499,2]
[402618268,1768726232031,-499.99999999,0.00015499,2]
[402618271,1768726232041,-3945.32389998,0.00015499,2]
[402618274,1768726232050,-150.0,0.00015499,2]
[402618276,1768726232059,-154.79146609,0.00015499,2]
[402618278,1768726232068,-617.10443114,0.000155,2]
[402618281,1768726232080,-5141.89556886,0.000155,2]
[402618283,1768726232090,-500.0,0.00015599,2]
[402618285,1768726232101,-500.0,0.00015599,2]
[402618286,1768726232111,-500.0,0.00015599,2]
[402618287,1768726232121,-1500.53266104,0.00015646,2]
[402618288,1768726232131,-500.0,0.00015673,2]
[402618289,1768726232140,-500.0,0.00015673,2]
[402618290,1768726232150,-500.0,0.00015673,2]
[402618291,1768726232159,-9209.43509722,0.00015679,2]
[402618292,1768726232171,-36850.50490278,0.00015679,2]
[402618293,1768726232181,-151.0,0.00015718,2]
[402618294,1768726232190,-151.0,0.0001572,2]
[402618295,1768726232201,-151.0,0.00015723,2]
[402618296,1768726232211,-151.0,0.00015725,2]
[402618297,1768726232220,-5457.57573477,0.00015743,2]
[402618298,1768726232246,-3.44454285,0.00015743,2]
[402618299,1768726232255,-1551.81479372,0.00015766,2]
[402618301,1768726237655,-243.28018197,0.00015398,2]
[402618302,1768726237664,-707.69981803,0.00015766,2]
[402618303,1768726237675,-1685.80928819,0.00015766,2]
[402618304,1768726237684,-1000.0,0.00015779,2]
[402618305,1768726237694,-151.0,0.00015783,2]
[402618306,1768726237703,-151.0,0.00015805,2]
[402618307,1768726237712,-376.35,0.00015918,2]
[402618308,1768726237721,-166.66,0.00015923,2]
[402618309,1768726237730,-2469.39253041,0.00016012,2]
[402618310,1768726237767,-2991.62774721,0.00016012,2]
[402618311,1768726237776,-1793.52225279,0.00016033,2]
[402618317,1768726239905,-2151.80164715,0.00016033,2]
[402618318,1768726239915,-174.61919141,0.0001618,2]
[402618319,1768726239924,-4001.0,0.0001618,2]
[402618320,1768726239934,-574.12855637,0.0001618,2]
[402618321,1768726239944,-2000.0,0.0001618,2]
[402618322,1768726239954,-112.65060507,0.0001618,2]
[402618325,1768726240428,-769.70654243,0.0001618,2]
[402618326,1768726240439,-393.40576807,0.0001618,2]
[402618327,1768726240646,-724.23708443,0.0001618,2]
[402618328,1768726240655,-2000.0,0.0001618,2]
[402618329,1768726240664,-322.6107,0.0001618,2]
[402618330,1768726240673,-2000.0,0.0001618,2]
[402618331,1768726240682,-1000.0,0.0001618,2]
[402618332,1768726240691,-2000.0,0.0001618,2]
[402618333,1768726240700,-466.61007112,0.0001618,2]
[402618334,1768726240709,-2000.0,0.0001618,2]
[402618335,1768726240719,-1000.0,0.0001618,2]
[402618336,1768726240728,-1000.0,0.0001618,2]
[402618337,1768726240738,-2000.0,0.0001618,2]
[402618338,1768726240749,-1000.0,0.0001618,2]
[402618339,1768726240760,-1000.0,0.0001618,2]
[402618340,1768726240768,-2000.0,0.0001618,2]
[402618341,1768726240777,-1000.0,0.0001618,2]
[402618342,1768726240787,-1000.0,0.0001618,2]
[402618343,1768726240796,-1000.0,0.0001618,2]
[402618344,1768726240804,-2000.0,0.0001618,2]
[402618345,1768726240814,-1000.0,0.0001618,2]
[402618346,1768726240823,-1000.0,0.0001618,2]
[402618347,1768726240832,-2000.0,0.0001618,2]
[402618348,1768726240842,-1000.0,0.0001618,2]
[402618349,1768726240851,-1000.0,0.0001618,2]
[402618350,1768726240860,-2000.0,0.0001618,2]
[402618351,1768726240871,-1000.0,0.0001618,2]
[402618352,1768726240880,-1000.0,0.0001618,2]
[402618353,1768726240889,-1000.0,0.0001618,2]
[402618354,1768726240899,-199.2892777,0.0001618,2]
[402618355,1768726240908,-767.68759009,0.0001618,2]
[402618356,1768726240917,-150.0,0.000162,2]
[402618357,1768726240927,-150.0,0.000162,2]
[402618358,1768726240936,-150.0,0.000162,2]
[402618359,1768726240945,-150.0,0.000162,2]
[402618360,1768726240957,-150.0,0.000162,2]
[402618361,1768726240967,-159.8708442,0.000162,2]
[402618362,1768726240977,-150.0,0.000162,2]
[402618363,1768726240987,-150.0,0.000162,2]
[402618364,1768726240997,-150.0,0.000162,2]
[402618365,1768726241006,-150.0,0.000162,2]
[402618366,1768726241017,-150.0,0.000162,2]
[402618367,1768726241027,-150.0,0.000162,2]
[402618368,1768726241037,-1000.0,0.00016221,2]
[402618369,1768726241047,-1000.0,0.00016221,2]
[402618370,1768726241056,-500.0,0.00016221,2]
[402618371,1768726241066,-5461.02027762,0.00016282,2]
[402618372,1768726241075,-3945.32389994,0.00016299,2]
[402618373,1768726241085,-2355.0,0.0001641,2]
[402618374,1768726241095,-379.21979939,0.00016415,2]
[402618375,1768726241104,-150.0,0.00016425,2]
[402618376,1768726241114,-187.10203341,0.00016428,2]
[402618377,1768726241123,-500.0,0.00016437,2]
[402618378,1768726241133,-500.0,0.00016438,2]
[402618379,1768726241142,-378.05924286,0.00016438,2]
[402618380,1768726241152,-500.0,0.00016438,2]
[402618381,1768726241161,-500.0,0.00016438,2]
[402618383,1768726241170,-500.0,0.00016438,2]
[402618384,1768726241179,-500.0,0.00016438,2]
[402618385,1768726241189,-500.0,0.00016438,2]
[402618386,1768726241199,-500.0,0.00016438,2]
[402618387,1768726241208,-500.0,0.00016438,2]
[402618388,1768726241217,-500.0,0.00016438,2]
[402618389,1768726241227,-500.0,0.00016438,2]
[402618390,1768726241236,-500.0,0.00016438,2]
[402618391,1768726241245,-500.0,0.00016438,2]
[402618392,1768726241255,-500.0,0.00016438,2]
[402618393,1768726241265,-500.0,0.00016438,2]
[402618394,1768726241274,-500.0,0.00016438,2]
[402618395,1768726241283,-500.0,0.00016438,2]
[402618396,1768726241292,-500.0,0.00016438,2]
[402618397,1768726241302,-500.0,0.00016438,2]
[402618398,1768726241311,-509.44,0.00016438,2]
[402618399,1768726241320,-500.0,0.00016438,2]
[402618400,1768726241330,-500.0,0.00016438,2]
[402618401,1768726241340,-500.0,0.00016438,2]
[402618402,1768726241350,-500.0,0.00016438,2]
[402618403,1768726241359,-500.0,0.00016438,2]
[402618404,1768726241369,-477.49917106,0.00016438,2]
[402618405,1768726241379,-500.0,0.00016438,2]
[402618406,1768726241388,-500.0,0.00016438,2]
[402618407,1768726241399,-500.0,0.00016438,2]
[402618408,1768726241408,-500.0,0.00016438,2]
[402618409,1768726241417,-500.0,0.00016438,2]
[402618410,1768726241428,-518.1,0.00016438,2]
[402618411,1768726241439,-500.0,0.00016438,2]
[402618412,1768726241449,-500.0,0.00016438,2]
[402618413,1768726241460,-500.0,0.00016438,2]
[402618414,1768726241470,-589.65,0.00016438,2]
[402618415,1768726241479,-500.0,0.00016438,2]
[402618416,1768726241488,-500.0,0.00016438,2]
[402618417,1768726241497,-500.0,0.00016438,2]
[402618418,1768726241508,-701.66,0.00016438,2]
[402618419,1768726241517,-1586.38,0.00016438,2]
[402618420,1768726241527,-500.0,0.00016438,2]
[402618421,1768726241535,-592.15,0.00016438,2]
[402618422,1768726241544,-500.0,0.00016438,2]
[402618423,1768726241553,-500.0,0.00016438,2]
[402618424,1768726241563,-500.0,0.00016438,2]
[402618425,1768726241572,-500.0,0.00016438,2]
[402618426,1768726241581,-500.0,0.00016438,2]
[402618427,1768726241591,-500.0,0.00016438,2]
[402618428,1768726241600,-500.0,0.00016438,2]
[402618429,1768726241609,-1060.23528488,0.00016438,2]
[402618430,1768726241618,-500.0,0.00016438,2]
[402618431,1768726241627,-500.0,0.00016438,2]
[402618432,1768726241636,-500.0,0.00016438,2]
[402618433,1768726241645,-500.0,0.00016438,2]
[402618434,1768726241656,-500.0,0.00016438,2]
[402618435,1768726241665,-500.0,0.00016438,2]
[402618436,1768726241674,-500.0,0.00016438,2]
[402618437,1768726241683,-500.0,0.00016438,2]
[402618438,1768726241692,-500.0,0.00016438,2]
[402618439,1768726241701,-500.0,0.00016438,2]
[402618440,1768726241710,-500.0,0.00016438,2]
[402618441,1768726241719,-500.0,0.00016438,2]
[402618442,1768726241728,-500.0,0.00016438,2]
[402618443,1768726241737,-500.0,0.00016438,2]
[402618444,1768726241747,-500.0,0.00016438,2]
[402618445,1768726241756,-500.0,0.00016438,2]
[402618446,1768726241765,-500.0,0.00016438,2]
[402618447,1768726241774,-500.0,0.00016438,2]
[402618448,1768726241784,-500.0,0.00016438,2]
[402618449,1768726241793,-500.0,0.00016438,2]
[402618450,1768726241802,-500.0,0.00016438,2]
[402618451,1768726241813,-500.0,0.00016438,2]
[402618452,1768726241822,-500.0,0.00016438,2]
[402618453,1768726241831,-500.0,0.00016438,2]
[402618454,1768726241842,-500.0,0.00016438,2]
[402618455,1768726241852,-500.0,0.00016438,2]
[402618456,1768726241861,-500.0,0.00016438,2]
[402618457,1768726241870,-500.0,0.00016438,2]
[402618458,1768726241879,-500.0,0.00016438,2]
[402618459,1768726241888,-500.0,0.00016438,2]
[402618460,1768726241897,-500.0,0.00016438,2]
[402618461,1768726241906,-500.0,0.00016438,2]
[402618462,1768726241915,-500.0,0.00016438,2]
[402618463,1768726241923,-500.0,0.00016438,2]
[402618464,1768726241935,-500.0,0.00016438,2]
[402618465,1768726241945,-500.0,0.00016438,2]
[402618466,1768726241958,-500.0,0.00016438,2]
[402618467,1768726241968,-500.0,0.00016438,2]
[402618468,1768726241977,-500.0,0.00016438,2]
[402618469,1768726241986,-500.0,0.00016438,2]
[402618470,1768726241995,-500.0,0.00016438,2]
[402618471,1768726242006,-500.0,0.00016438,2]
[402618472,1768726242015,-500.0,0.00016438,2]
[402618473,1768726242024,-500.0,0.00016438,2]
[402618474,1768726242038,-500.0,0.00016438,2]
[402618475,1768726242048,-500.0,0.00016438,2]
[402618476,1768726242057,-500.0,0.00016438,2]
[402618477,1768726242067,-500.0,0.00016438,2]
[402618478,1768726242077,-500.0,0.00016438,2]
[402618479,1768726242086,-500.0,0.00016438,2]
[402618480,1768726242095,-500.0,0.00016438,2]
[402618481,1768726242105,-500.0,0.00016438,2]
[402618482,1768726242114,-500.0,0.00016438,2]
[402618483,1768726242124,-500.0,0.00016438,2]
[402618484,1768726242134,-500.0,0.00016438,2]
[402618485,1768726242143,-500.0,0.00016438,2]
[402618486,1768726242152,-500.0,0.00016438,2]
[402618487,1768726242162,-500.0,0.00016438,2]
[402618488,1768726242172,-500.0,0.00016438,2]
[402618489,1768726242182,-500.0,0.00016438,2]
[402618490,1768726242192,-500.0,0.00016438,2]
[402618491,1768726242201,-500.0,0.00016438,2]
[402618492,1768726242210,-500.0,0.00016438,2]
[402618493,1768726242219,-500.0,0.00016438,2]
[402618494,1768726242228,-500.0,0.00016438,2]
[402618495,1768726242238,-500.0,0.00016438,2]
[402618496,1768726242248,-500.0,0.00016438,2]
[402618497,1768726242258,-560.03,0.00016438,2]
[402618498,1768726242267,-253.68769872,0.00016438,2]
[402618499,1768726242276,-500.0,0.00016438,2]
[402618500,1768726242285,-500.0,0.00016438,2]
[402618501,1768726242295,-500.0,0.00016438,2]
[402618502,1768726242304,-500.0,0.00016438,2]
[402618503,1768726242316,-500.0,0.00016438,2]
[402618504,1768726242327,-500.0,0.00016438,2]
[402618505,1768726242336,-500.0,0.00016438,2]
[402618506,1768726242346,-500.0,0.00016438,2]
[402618507,1768726242355,-500.0,0.00016438,2]
[402618508,1768726242365,-500.0,0.00016438,2]
[402618509,1768726242374,-500.0,0.00016438,2]
[402618510,1768726242383,-500.0,0.00016438,2]
[402618511,1768726242393,-500.0,0.00016438,2]
[402618512,1768726242402,-500.0,0.00016438,2]
[402618513,1768726242411,-500.0,0.00016438,2]
[402618514,1768726242420,-500.0,0.00016438,2]
[402618515,1768726242429,-500.0,0.00016438,2]
[402618516,1768726242439,-500.0,0.00016438,2]
[402618517,1768726242448,-500.0,0.00016438,2]
[402618518,1768726242457,-500.0,0.00016438,2]
[402618520,1768726242467,-500.0,0.00016438,2]
[402618521,1768726242477,-500.0,0.00016438,2]
[402618522,1768726242487,-500.0,0.00016438,2]
[402618523,1768726242496,-500.0,0.00016438,2]
[402618524,1768726242506,-500.0,0.00016438,2]
[402618525,1768726242516,-500.0,0.00016438,2]
[402618526,1768726242525,-500.0,0.00016438,2]
[402618527,1768726242535,-500.0,0.00016438,2]
[402618528,1768726242545,-500.0,0.00016438,2]
[402618529,1768726242557,-500.0,0.00016438,2]
[402618530,1768726242566,-500.0,0.00016438,2]
[402618531,1768726242576,-500.0,0.00016438,2]
[402618532,1768726242586,-500.0,0.00016438,2]
[402618533,1768726242595,-500.0,0.00016438,2]
[402618534,1768726242604,-500.0,0.00016438,2]
[402618535,1768726242614,-500.0,0.00016438,2]
[402618536,1768726242624,-404.78941004,0.00016438,2]
[402618537,1768726242633,-340.0,0.00016438,2]
[402618538,1768726242642,-500.0,0.00016438,2]
[402618539,1768726242652,-500.0,0.00016438,2]
[402618540,1768726242661,-500.0,0.00016438,2]
[402618541,1768726242670,-500.0,0.00016438,2]
[402618542,1768726242679,-500.0,0.00016438,2]
[402618543,1768726242690,-531.53,0.00016438,2]
[402618544,1768726242701,-500.0,0.00016438,2]
[402618545,1768726242710,-500.0,0.00016438,2]
[402618546,1768726242719,-500.0,0.00016438,2]
[402618547,1768726242730,-500.0,0.00016438,2]
[402618548,1768726242742,-500.0,0.00016438,2]
[402618549,1768726242751,-500.0,0.00016438,2]
[402618550,1768726242762,-500.0,0.00016438,2]
[402618551,1768726242772,-500.0,0.00016438,2]
[402618552,1768726242781,-500.0,0.00016438,2]
[402618553,1768726242790,-500.0,0.00016438,2]
[402618554,1768726242799,-500.0,0.00016438,2]
[402618555,1768726242808,-500.0,0.00016438,2]
[402618556,1768726242818,-500.0,0.00016438,2]
[402618557,1768726242828,-500.0,0.00016438,2]
[402618558,1768726242840,-500.0,0.00016438,2]
[402618559,1768726242851,-500.0,0.00016438,2]
[402618560,1768726242861,-500.0,0.00016438,2]
[402618561,1768726242871,-500.0,0.00016438,2]
[402618562,1768726242881,-500.0,0.00016438,2]
[402618563,1768726242890,-500.0,0.00016438,2]
[402618564,1768726242899,-500.0,0.00016438,2]
[402618565,1768726242908,-500.0,0.00016438,2]
[402618566,1768726242917,-500.0,0.00016438,2]
[402618567,1768726242929,-500.0,0.00016438,2]
[402618568,1768726242939,-500.0,0.00016438,2]
[402618569,1768726242950,-500.0,0.00016438,2]
[402618570,1768726242964,-500.0,0.00016438,2]
[402618571,1768726242974,-722.21,0.00016438,2]
[402618572,1768726242985,-500.0,0.00016438,2]
[402618573,1768726242995,-519.35,0.00016438,2]
[402618574,1768726243005,-500.0,0.00016438,2]
[402618575,1768726243016,-500.0,0.00016438,2]
[402618576,1768726243026,-500.0,0.00016438,2]
[402618577,1768726243036,-500.0,0.00016438,2]
[402618578,1768726243046,-500.0,0.00016438,2]
[402618579,1768726243058,-500.0,0.00016438,2]
[402618580,1768726243067,-500.0,0.00016438,2]
[402618581,1768726243078,-500.0,0.00016438,2]
[402618582,1768726243087,-500.0,0.00016438,2]
[402618583,1768726243097,-500.0,0.00016438,2]
[402618584,1768726243107,-500.0,0.00016438,2]
[402618585,1768726243116,-500.0,0.00016438,2]
[402618586,1768726243126,-500.0,0.00016438,2]
[402618587,1768726243135,-845.48,0.00016438,2]
[402618588,1768726243145,-500.0,0.00016438,2]
[402618589,1768726243155,-500.0,0.00016438,2]
[402618590,1768726243165,-500.0,0.00016438,2]
[402618591,1768726243175,-500.0,0.00016438,2]
[402618592,1768726243184,-1007.72577203,0.00016438,2]
[402618593,1768726243193,-500.0,0.00016438,2]
[402618594,1768726243202,-500.0,0.00016438,2]
[402618595,1768726243212,-500.0,0.00016438,2]
[402618596,1768726243222,-500.0,0.00016438,2]
[402618597,1768726243231,-500.0,0.00016438,2]
[402618598,1768726243241,-545.07666712,0.00016438,2]
[402618599,1768726243251,-687.44,0.00016438,2]
[402618600,1768726243261,-500.0,0.00016438,2]
[402618601,1768726243271,-500.0,0.00016438,2]
[402618602,1768726243280,-500.0,0.00016438,2]
[402618603,1768726243290,-500.0,0.00016438,2]
[402618604,1768726243300,-500.0,0.00016438,2]
[402618605,1768726243309,-500.0,0.00016438,2]
[402618606,1768726243319,-500.0,0.00016438,2]
[402618607,1768726243329,-500.0,0.00016438,2]
[402618608,1768726243340,-500.0,0.00016438,2]
[402618609,1768726243349,-500.0,0.00016438,2]
[402618610,1768726243360,-500.0,0.00016438,2]
[402618611,1768726243370,-500.0,0.00016438,2]
[402618612,1768726243380,-500.0,0.00016438,2]
[402618613,1768726243389,-500.0,0.00016438,2]
[402618614,1768726243399,-511.64252877,0.00016438,2]
[402618615,1768726243408,-500.0,0.00016438,2]
[402618616,1768726243418,-500.0,0.00016438,2]
[402618617,1768726243427,-500.0,0.00016438,2]
[402618618,1768726243436,-500.0,0.00016438,2]
[402618619,1768726243446,-500.0,0.00016438,2]
[402618620,1768726243456,-500.0,0.00016438,2]
[402618621,1768726243466,-500.0,0.00016438,2]
[402618622,1768726243477,-500.0,0.00016438,2]
[402618623,1768726243487,-500.0,0.00016438,2]
[402618624,1768726243496,-500.0,0.00016438,2]
[402618625,1768726243506,-500.0,0.00016438,2]
[402618626,1768726243515,-500.0,0.00016438,2]
[402618627,1768726243525,-500.0,0.00016438,2]
[402618628,1768726243535,-500.0,0.00016438,2]
[402618629,1768726243544,-500.0,0.00016438,2]
[402618630,1768726243554,-500.0,0.00016438,2]
[402618631,1768726243563,-500.0,0.00016438,2]
[402618632,1768726243573,-500.0,0.00016438,2]
[402618633,1768726243582,-500.0,0.00016438,2]
[402618634,1768726243593,-194.45987396,0.00016438,2]
[402618635,1768726243603,-500.0,0.00016438,2]
[402618636,1768726243613,-500.0,0.00016438,2]
[402618637,1768726243623,-500.0,0.00016438,2]
[402618638,1768726243634,-500.0,0.00016438,2]
[402618639,1768726243644,-500.0,0.00016438,2]
[402618640,1768726243654,-500.0,0.00016438,2]
[402618641,1768726243664,-500.0,0.00016438,2]
[402618642,1768726243675,-500.0,0.00016438,2]
[402618643,1768726243684,-500.0,0.00016438,2]
[402618644,1768726243694,-194.26389465,0.00016438,2]
[402618645,1768726243703,-500.0,0.00016438,2]
[402618646,1768726243713,-500.0,0.00016438,2]
[402618647,1768726243723,-500.0,0.00016438,2]
[402618648,1768726243732,-523.58443193,0.00016438,2]
[402618649,1768726243742,-500.0,0.00016438,2]
[402618650,1768726243751,-500.0,0.00016438,2]
[402618651,1768726243762,-500.0,0.00016438,2]
[402618652,1768726243772,-500.0,0.00016438,2]
[402618653,1768726243784,-500.0,0.00016438,2]
[402618654,1768726243794,-500.0,0.00016438,2]
[402618655,1768726243805,-500.0,0.00016438,2]
[402618656,1768726243816,-500.0,0.00016438,2]
[402618657,1768726243826,-500.0,0.00016438,2]
[402618658,1768726243836,-500.0,0.00016438,2]
[402618659,1768726243845,-500.0,0.00016438,2]
[402618660,1768726243855,-500.0,0.00016438,2]
[402618661,1768726243865,-500.0,0.00016438,2]
[402618662,1768726243876,-500.0,0.00016438,2]
[402618663,1768726243885,-500.0,0.00016438,2]
[402618664,1768726243895,-500.0,0.00016438,2]
[402618665,1768726243904,-500.0,0.00016438,2]
[402618666,1768726243913,-500.0,0.00016438,2]
[402618667,1768726243923,-500.0,0.00016438,2]
[402618668,1768726243932,-500.0,0.00016438,2]